[Event "Titled Tuesday Blitz August 23 Late 2022"]
[White "Mladek, Richard"]
[Black "Dubov, Daniil"]
[WhiteFideId "386588"]
[BlackFideId "24126055"]
[WhiteElo "2263"]
[BlackElo "2791"]
[Result "0-1"]
[Round "03"]
[TimeControl "180+1"]
[Date "2022.08.23"]
[WhiteClock "0:00:03"]
[BlackClock "0:00:04"]

1. d4 {[%clk 0:01:49]}  Nf6 {[%clk 0:02:57]} 2. c4 {[%clk 0:01:49]}  e6 {[%clk 0:02:56]} 3. Nc3 {[%clk 0:01:50]}  Bb4 {[%clk 0:02:55]} 4. e3 {[%clk 0:01:50]}  d5 {[%clk 0:02:52]} 5. Nf3 {[%clk 0:01:50]}  O-O {[%clk 0:02:51]} 6. Bd2 {[%clk 0:01:50]}  Re8 {[%clk 0:02:46]} 7. Rc1 {[%clk 0:01:48]}  h6 {[%clk 0:02:38]} 8. a3 {[%clk 0:01:42]}  Bd6 {[%clk 0:02:34]} 9. cxd5 {[%clk 0:01:31]}  exd5 {[%clk 0:02:35]} 10. Nb5 {[%clk 0:01:31]}  Bf5 {[%clk 0:02:22]} 11. Nxd6 {[%clk 0:01:24]}  Qxd6 {[%clk 0:02:23]} 12. Bb4 {[%clk 0:01:19]}  Qd8 {[%clk 0:02:22]} 13. Bd3 {[%clk 0:01:17]}  Bxd3 {[%clk 0:02:21]} 14. Qxd3 {[%clk 0:01:17]}  c6 {[%clk 0:02:19]} 15. O-O {[%clk 0:01:14]}  Nbd7 {[%clk 0:02:17]} 16. Bd6 {[%clk 0:01:09]}  Ne4 {[%clk 0:02:16]} 17. Bg3 {[%clk 0:01:08]}  Qb6 {[%clk 0:01:57]} 18. Qc2 {[%clk 0:00:51]}  a5 {[%clk 0:01:55]} 19. Ne1 {[%clk 0:00:42]}  Nxg3 {[%clk 0:01:40]} 20. hxg3 {[%clk 0:00:42]}  a4 {[%clk 0:01:41]} 21. Nd3 {[%clk 0:00:41]}  Qd8 {[%clk 0:01:38]} 22. Qe2 {[%clk 0:00:32]}  Qe7 {[%clk 0:01:30]} 23. Qf3 {[%clk 0:00:32]}  Nb6 {[%clk 0:01:22]} 24. Ne5 {[%clk 0:00:28]}  Ra5 {[%clk 0:01:15]} 25. Rc2 {[%clk 0:00:26]}  Rb5 {[%clk 0:01:15]} 26. Qh5 {[%clk 0:00:20]}  Rf8 {[%clk 0:00:54]} 27. Re1 {[%clk 0:00:20]}  Qg5 {[%clk 0:00:53]} 28. Qe2 {[%clk 0:00:20]}  Qf5 {[%clk 0:00:41]} 29. Rb1 {[%clk 0:00:18]}  Re8 {[%clk 0:00:33]} 30. g4 {[%clk 0:00:17]}  Qe6 {[%clk 0:00:30]} 31. Qd3 {[%clk 0:00:14]}  f6 {[%clk 0:00:28]} 32. Ng6 {[%clk 0:00:10]}  Qxg4 {[%clk 0:00:27]} 33. Nf4 {[%clk 0:00:09]}  Qd7 {[%clk 0:00:25]} 34. b3 {[%clk 0:00:10]}  Nc4 {[%clk 0:00:19]} 35. Ra2 {[%clk 0:00:06]}  axb3 {[%clk 0:00:18]} 36. Rxb3 {[%clk 0:00:07]}  Rxb3 {[%clk 0:00:18]} 37. Qxb3 {[%clk 0:00:08]}  Ra8 {[%clk 0:00:17]} 38. a4 {[%clk 0:00:08]}  b6 {[%clk 0:00:15]} 39. Qd3 {[%clk 0:00:09]}  Qf7 {[%clk 0:00:14]} 40. Ra1 {[%clk 0:00:09]}  g5 {[%clk 0:00:12]} 41. Ne2 {[%clk 0:00:09]}  b5 {[%clk 0:00:10]} 42. Qb3 {[%clk 0:00:06]}  Ra5 {[%clk 0:00:09]} 43. Ng3 {[%clk 0:00:05]}  Qg6 {[%clk 0:00:04]} 44. Ra2 {[%clk 0:00:04]}  h5 {[%clk 0:00:03]} 45. axb5 {[%clk 0:00:03]}  Rxb5 {[%clk 0:00:03]} 46. Ra8+ {[%clk 0:00:03]}  Kg7 {[%clk 0:00:04]} 47. Qa2 {[%clk 0:00:03]}  Qb1+ {[%clk 0:00:03]} 48. Kh2 {[%clk 0:00:03]}  Qxa2 {[%clk 0:00:03]} 49. Rxa2 {[%clk 0:00:04]}  h4 {[%clk 0:00:04]} 50. Nf5+ {[%clk 0:00:04]}  Kf7 {[%clk 0:00:02]} 51. Ra7+ {[%clk 0:00:04]}  Kf8 {[%clk 0:00:02]} 52. Ra8+ {[%clk 0:00:03]}  Kf7 {[%clk 0:00:02]} 53. Ra7+ {[%clk 0:00:04]}  Kg6 {[%clk 0:00:01]} 54. Ne7+ {[%clk 0:00:05]}  Kh5 {[%clk 0:00:02]} 55. Nxc6 {[%clk 0:00:05]}  Rb2 {[%clk 0:00:02]} 56. Kg1 {[%clk 0:00:03]}  Rb1+ {[%clk 0:00:02]} 57. Kh2 {[%clk 0:00:03]}  Rf1 {[%clk 0:00:03]} 58. f3 {[%clk 0:00:04]}  Nxe3 {[%clk 0:00:03]} 59. Ne7 {[%clk 0:00:04]}  Rf2 {[%clk 0:00:03]} 60. Ng8 {[%clk 0:00:03]}  Rxg2+ {[%clk 0:00:04]} 61. Kh1 {[%clk 0:00:04]}  Kg6 {[%clk 0:00:03]} 62. Ne7+ {[%clk 0:00:04]}  Kh5 {[%clk 0:00:03]} 63. Ng8 {[%clk 0:00:04]}  Rf2 {[%clk 0:00:03]} 64. Nxf6+ {[%clk 0:00:04]}  Kg6 {[%clk 0:00:04]} 65. Ra6 {[%clk 0:00:03]}  Kf5 {[%clk 0:00:04]} 66. Nh7 {[%clk 0:00:02]}  Rxf3 {[%clk 0:00:03]} 67. Rf6+ {[%clk 0:00:03]}  Kg4 {[%clk 0:00:03]} 68. Rxf3 {[%clk 0:00:04]}  Kxf3 {[%clk 0:00:04]} 69. Nxg5+ {[%clk 0:00:04]}  Kg4 {[%clk 0:00:04]} 70. Nf7 {[%clk 0:00:04]}  Kg3 {[%clk 0:00:04]} 71. Ng5 {[%clk 0:00:04]}  h3 {[%clk 0:00:04]} 72. Nh7 {[%clk 0:00:03]}  Ng4 {[%clk 0:00:04]} 73. Nf6 {[%clk 0:00:03]}  Nxf6 {[%clk 0:00:04]} 0-1


[Site "https://www.chess.com"]

[Event "Titled Tuesday Blitz August 23 Late 2022"]
[White "Moroni, Luca Jr"]
[Black "Nasuta, Grzegorz"]
[WhiteFideId "865834"]
[BlackFideId "1141686"]
[WhiteElo "2573"]
[BlackElo "2354"]
[Result "1-0"]
[Round "03"]
[TimeControl "180+1"]
[Date "2022.08.23"]
[WhiteClock "0:00:39"]
[BlackClock "0:00:03"]

1. d4 {[%clk 0:03:00]}  d5 {[%clk 0:02:58]} 2. Bf4 {[%clk 0:03:00]}  c5 {[%clk 0:02:57]} 3. e3 {[%clk 0:03:00]}  Nc6 {[%clk 0:02:56]} 4. Nf3 {[%clk 0:03:01]}  Nf6 {[%clk 0:02:51]} 5. Nbd2 {[%clk 0:03:00]}  Nh5 {[%clk 0:02:42]} 6. dxc5 {[%clk 0:02:57]}  Nxf4 {[%clk 0:02:42]} 7. exf4 {[%clk 0:02:58]}  g6 {[%clk 0:02:41]} 8. c3 {[%clk 0:02:54]}  Bh6 {[%clk 0:02:39]} 9. g3 {[%clk 0:02:44]}  O-O {[%clk 0:02:39]} 10. Nb3 {[%clk 0:02:41]}  Bg7 {[%clk 0:02:28]} 11. Bg2 {[%clk 0:02:38]}  a5 {[%clk 0:02:28]} 12. a4 {[%clk 0:02:36]}  e6 {[%clk 0:02:28]} 13. O-O {[%clk 0:02:36]}  b6 {[%clk 0:02:29]} 14. Qc2 {[%clk 0:02:24]}  Rb8 {[%clk 0:02:27]} 15. Rfd1 {[%clk 0:02:16]}  bxc5 {[%clk 0:02:24]} 16. Nxc5 {[%clk 0:02:15]}  Qb6 {[%clk 0:02:25]} 17. Nd3 {[%clk 0:02:14]}  Ba6 {[%clk 0:02:25]} 18. Rab1 {[%clk 0:02:12]}  Rfc8 {[%clk 0:02:23]} 19. Qd2 {[%clk 0:01:58]}  Bxd3 {[%clk 0:02:02]} 20. Qxd3 {[%clk 0:01:58]}  Qb3 {[%clk 0:02:02]} 21. h4 {[%clk 0:01:37]}  Qxa4 {[%clk 0:01:56]} 22. h5 {[%clk 0:01:37]}  Qb5 {[%clk 0:01:48]} 23. hxg6 {[%clk 0:01:33]}  hxg6 {[%clk 0:01:47]} 24. Qe3 {[%clk 0:01:27]}  Bf6 {[%clk 0:01:37]} 25. Bf1 {[%clk 0:01:26]}  Qb6 {[%clk 0:01:36]} 26. Qd2 {[%clk 0:01:26]}  Kg7 {[%clk 0:01:35]} 27. Bd3 {[%clk 0:01:25]}  Qc5 {[%clk 0:01:31]} 28. g4 {[%clk 0:01:15]}  Kf8 {[%clk 0:01:22]} 29. Kg2 {[%clk 0:01:11]}  Rb6 {[%clk 0:01:21]} 30. Rh1 {[%clk 0:01:03]}  Rcb8 {[%clk 0:01:20]} 31. Qe2 {[%clk 0:00:52]}  Qd6 {[%clk 0:01:10]} 32. Qd2 {[%clk 0:00:46]}  Qc7 {[%clk 0:00:41]} 33. Rh7 {[%clk 0:00:40]}  Ne7 {[%clk 0:00:16]} 34. f5 {[%clk 0:00:40]}  gxf5 {[%clk 0:00:10]} 35. Qh6+ {[%clk 0:00:40]}  Ke8 {[%clk 0:00:03]} 36. Qxf6 {[%clk 0:00:39]} 1-0


[Site "https://www.chess.com"]

[Event "Titled Tuesday Blitz August 23 Late 2022"]
[White "Ohanyan, Emin"]
[Black "Vovk, Orest"]
[WhiteFideId "13312022"]
[BlackFideId "14113490"]
[WhiteElo "1927"]
[BlackElo "2203"]
[Result "1-0"]
[Round "03"]
[TimeControl "180+1"]
[Date "2022.08.23"]
[WhiteClock "0:02:20"]
[BlackClock "0:01:24"]

1. e4 {[%clk 0:03:00]}  g5 {[%clk 0:02:59]} 2. Nf3 {[%clk 0:02:56]}  g4 {[%clk 0:02:59]} 3. Ne5 {[%clk 0:02:56]}  h5 {[%clk 0:02:54]} 4. Nc3 {[%clk 0:02:41]}  Bg7 {[%clk 0:02:54]} 5. d4 {[%clk 0:02:41]}  d6 {[%clk 0:02:52]} 6. Nc4 {[%clk 0:02:41]}  c5 {[%clk 0:02:47]} 7. dxc5 {[%clk 0:02:40]}  Bxc3+ {[%clk 0:02:46]} 8. bxc3 {[%clk 0:02:41]}  dxc5 {[%clk 0:02:47]} 9. Qxd8+ {[%clk 0:02:41]}  Kxd8 {[%clk 0:02:47]} 10. Be3 {[%clk 0:02:40]}  b6 {[%clk 0:02:45]} 11. O-O-O+ {[%clk 0:02:40]}  Ke8 {[%clk 0:02:46]} 12. Ne5 {[%clk 0:02:40]}  Nd7 {[%clk 0:02:42]} 13. Bb5 {[%clk 0:02:39]}  Nf6 {[%clk 0:02:39]} 14. Bg5 {[%clk 0:02:39]}  a6 {[%clk 0:02:33]} 15. Bxf6 {[%clk 0:02:39]}  axb5 {[%clk 0:02:23]} 16. Bxh8 {[%clk 0:02:39]}  f6 {[%clk 0:02:23]} 17. Nxd7 {[%clk 0:02:39]}  Bxd7 {[%clk 0:02:23]} 18. e5 {[%clk 0:02:40]}  Bf5 {[%clk 0:02:16]} 19. Kb2 {[%clk 0:02:37]}  Kf7 {[%clk 0:02:13]} 20. Bxf6 {[%clk 0:02:35]}  exf6 {[%clk 0:02:13]} 21. exf6 {[%clk 0:02:36]}  Kxf6 {[%clk 0:02:07]} 22. Rd6+ {[%clk 0:02:35]}  Ke5 {[%clk 0:02:04]} 23. Rxb6 {[%clk 0:02:36]}  Rd8 {[%clk 0:01:59]} 24. Rxb5 {[%clk 0:02:36]}  Rd2 {[%clk 0:02:00]} 25. Rxc5+ {[%clk 0:02:35]}  Kf6 {[%clk 0:02:00]} 26. Rxf5+ {[%clk 0:02:35]}  Kxf5 {[%clk 0:02:00]} 27. Rf1 {[%clk 0:02:35]}  h4 {[%clk 0:01:58]} 28. a4 {[%clk 0:02:36]}  h3 {[%clk 0:01:55]} 29. gxh3 {[%clk 0:02:36]}  gxh3 {[%clk 0:01:55]} 30. a5 {[%clk 0:02:35]}  Kf4 {[%clk 0:01:54]} 31. a6 {[%clk 0:02:35]}  Kf3 {[%clk 0:01:54]} 32. Rg1 {[%clk 0:02:27]}  Rd6 {[%clk 0:01:47]} 33. Rg3+ {[%clk 0:02:23]}  Kxf2 {[%clk 0:01:47]} 34. Rxh3 {[%clk 0:02:24]}  Rxa6 {[%clk 0:01:39]} 35. c4 {[%clk 0:02:24]}  Kg2 {[%clk 0:01:36]} 36. Rd3 {[%clk 0:02:23]}  Kxh2 {[%clk 0:01:36]} 37. Kb3 {[%clk 0:02:23]}  Ra8 {[%clk 0:01:34]} 38. c5 {[%clk 0:02:23]}  Rc8 {[%clk 0:01:33]} 39. Kc4 {[%clk 0:02:23]}  Kg2 {[%clk 0:01:32]} 40. Kb5 {[%clk 0:02:23]}  Rb8+ {[%clk 0:01:33]} 41. Ka6 {[%clk 0:02:23]}  Rc8 {[%clk 0:01:28]} 42. Kb6 {[%clk 0:02:23]}  Rb8+ {[%clk 0:01:29]} 43. Kc7 {[%clk 0:02:23]}  Rb2 {[%clk 0:01:28]} 44. c3 {[%clk 0:02:23]}  Kf2 {[%clk 0:01:27]} 45. c6 {[%clk 0:02:22]}  Ke2 {[%clk 0:01:28]} 46. Rd7 {[%clk 0:02:20]}  Rc2 {[%clk 0:01:25]} 47. Kd8 {[%clk 0:02:20]}  Rxc3 {[%clk 0:01:24]} 48. c7 {[%clk 0:02:20]} 1-0


[Site "https://www.chess.com"]

[Event "Titled Tuesday Blitz August 23 Late 2022"]
[White "Paravyan, David"]
[Black "Putnam, Liam"]
[WhiteFideId "4194985"]
[BlackFideId "30938279"]
[WhiteElo "2569"]
[BlackElo "2035"]
[Result "1-0"]
[Round "03"]
[TimeControl "180+1"]
[Date "2022.08.23"]
[WhiteClock "0:00:16"]
[BlackClock "0:00:03"]

1. e4 {[%clk 0:02:57]}  e5 {[%clk 0:02:50]} 2. Nf3 {[%clk 0:02:57]}  Nc6 {[%clk 0:02:49]} 3. Nc3 {[%clk 0:02:58]}  Nf6 {[%clk 0:02:48]} 4. d4 {[%clk 0:02:59]}  exd4 {[%clk 0:02:48]} 5. Nxd4 {[%clk 0:02:59]}  Bb4 {[%clk 0:02:49]} 6. Nxc6 {[%clk 0:03:00]}  bxc6 {[%clk 0:02:50]} 7. Bd3 {[%clk 0:03:00]}  d5 {[%clk 0:02:50]} 8. exd5 {[%clk 0:03:01]}  O-O {[%clk 0:02:50]} 9. O-O {[%clk 0:03:01]}  cxd5 {[%clk 0:02:51]} 10. h3 {[%clk 0:03:01]}  c6 {[%clk 0:02:49]} 11. Qf3 {[%clk 0:03:00]}  Re8 {[%clk 0:02:35]} 12. Bg5 {[%clk 0:02:41]}  h6 {[%clk 0:02:21]} 13. Bh4 {[%clk 0:02:35]}  Bd6 {[%clk 0:01:55]} 14. Rae1 {[%clk 0:02:32]}  Be6 {[%clk 0:01:33]} 15. Ne2 {[%clk 0:01:58]}  g5 {[%clk 0:01:25]} 16. Nd4 {[%clk 0:01:32]}  gxh4 {[%clk 0:01:16]} 17. Nxc6 {[%clk 0:01:32]}  Qc7 {[%clk 0:00:40]} 18. Qxf6 {[%clk 0:01:32]}  Qxc6 {[%clk 0:00:38]} 19. Qxh6 {[%clk 0:01:32]}  f5 {[%clk 0:00:38]} 20. Qg6+ {[%clk 0:00:54]}  Kh8 {[%clk 0:00:25]} 21. Qf6+ {[%clk 0:00:50]}  Kg8 {[%clk 0:00:24]} 22. Rxe6 {[%clk 0:00:36]}  Bh2+ {[%clk 0:00:23]} 23. Kxh2 {[%clk 0:00:36]}  Qxe6 {[%clk 0:00:23]} 24. Qxh4 {[%clk 0:00:33]}  Qg6 {[%clk 0:00:20]} 25. Qf4 {[%clk 0:00:29]}  Rf8 {[%clk 0:00:19]} 26. Re1 {[%clk 0:00:27]}  Rae8 {[%clk 0:00:17]} 27. Rxe8 {[%clk 0:00:24]}  Qxe8 {[%clk 0:00:17]} 28. Qg5+ {[%clk 0:00:22]}  Kh8 {[%clk 0:00:14]} 29. f4 {[%clk 0:00:21]}  Qf7 {[%clk 0:00:13]} 30. Qh6+ {[%clk 0:00:21]}  Kg8 {[%clk 0:00:13]} 31. b4 {[%clk 0:00:19]}  Qg7 {[%clk 0:00:11]} 32. Qe6+ {[%clk 0:00:19]}  Qf7 {[%clk 0:00:10]} 33. Bxf5 {[%clk 0:00:19]}  Kg7 {[%clk 0:00:07]} 34. Qxf7+ {[%clk 0:00:13]}  Rxf7 {[%clk 0:00:08]} 35. g4 {[%clk 0:00:14]}  a5 {[%clk 0:00:08]} 36. bxa5 {[%clk 0:00:10]}  Ra7 {[%clk 0:00:07]} 37. Kg3 {[%clk 0:00:10]}  Rxa5 {[%clk 0:00:07]} 38. Bd3 {[%clk 0:00:11]}  Rxa2 {[%clk 0:00:07]} 39. g5 {[%clk 0:00:12]}  Ra4 {[%clk 0:00:06]} 40. h4 {[%clk 0:00:12]}  Ra1 {[%clk 0:00:06]} 41. h5 {[%clk 0:00:13]}  Rh1 {[%clk 0:00:06]} 42. Kg4 {[%clk 0:00:13]}  Rg1+ {[%clk 0:00:05]} 43. Kf5 {[%clk 0:00:14]}  Kf7 {[%clk 0:00:05]} 44. h6 {[%clk 0:00:15]}  Rh1 {[%clk 0:00:05]} 45. g6+ {[%clk 0:00:15]}  Kf8 {[%clk 0:00:06]} 46. Kg5 {[%clk 0:00:14]}  Rg1+ {[%clk 0:00:06]} 47. Kf6 {[%clk 0:00:15]}  Rh1 {[%clk 0:00:07]} 48. h7 {[%clk 0:00:15]}  Rh6 {[%clk 0:00:06]} 49. f5 {[%clk 0:00:15]}  d4 {[%clk 0:00:06]} 50. Be4 {[%clk 0:00:13]}  Ke8 {[%clk 0:00:02]} 51. Kg7 {[%clk 0:00:13]}  Rh5 {[%clk 0:00:02]} 52. Bd3 {[%clk 0:00:13]}  Ke7 {[%clk 0:00:02]} 53. f6+ {[%clk 0:00:14]}  Ke6 {[%clk 0:00:03]} 54. f7 {[%clk 0:00:15]}  Rg5 {[%clk 0:00:02]} 55. h8=Q {[%clk 0:00:15]}  Rxg6+ {[%clk 0:00:02]} 56. Kxg6 {[%clk 0:00:15]}  Kd7 {[%clk 0:00:03]} 57. c3 {[%clk 0:00:15]}  Ke6 {[%clk 0:00:04]} 58. f8=Q {[%clk 0:00:16]}  Kd5 {[%clk 0:00:04]} 59. Qd8+ {[%clk 0:00:15]}  Kc6 {[%clk 0:00:04]} 60. Qe5 {[%clk 0:00:16]}  dxc3 {[%clk 0:00:03]} 61. Qb5# {[%clk 0:00:16]} 1-0


[Site "https://www.chess.com"]

[Event "Titled Tuesday Blitz August 23 Late 2022"]
[White "Piesik, Piotr"]
[Black "Bluebaum, Matthias"]
[WhiteFideId "1136194"]
[BlackFideId "24651516"]
[WhiteElo "2221"]
[BlackElo "2603"]
[Result "0-1"]
[Round "03"]
[TimeControl "180+1"]
[Date "2022.08.23"]
[WhiteClock "0:01:32"]
[BlackClock "0:02:11"]

1. Nf3 {[%clk 0:03:00]}  d5 {[%clk 0:02:59]} 2. g3 {[%clk 0:02:58]}  Bg4 {[%clk 0:02:59]} 3. Bg2 {[%clk 0:02:58]}  e6 {[%clk 0:03:00]} 4. O-O {[%clk 0:02:58]}  Nf6 {[%clk 0:03:01]} 5. d3 {[%clk 0:02:58]}  Be7 {[%clk 0:03:01]} 6. Nbd2 {[%clk 0:02:58]}  c5 {[%clk 0:03:01]} 7. e4 {[%clk 0:02:58]}  Nc6 {[%clk 0:03:01]} 8. h3 {[%clk 0:02:58]}  Bh5 {[%clk 0:03:01]} 9. c3 {[%clk 0:02:57]}  O-O {[%clk 0:03:02]} 10. Qc2 {[%clk 0:02:57]}  Qc7 {[%clk 0:03:02]} 11. Re1 {[%clk 0:02:55]}  Rad8 {[%clk 0:03:03]} 12. Nf1 {[%clk 0:02:53]}  b5 {[%clk 0:02:51]} 13. Bf4 {[%clk 0:02:46]}  Qb6 {[%clk 0:02:51]} 14. e5 {[%clk 0:02:43]}  Nd7 {[%clk 0:02:52]} 15. g4 {[%clk 0:02:35]}  Bg6 {[%clk 0:02:52]} 16. Qe2 {[%clk 0:02:35]}  c4 {[%clk 0:02:49]} 17. d4 {[%clk 0:02:35]}  b4 {[%clk 0:02:49]} 18. Ng3 {[%clk 0:02:31]}  bxc3 {[%clk 0:02:48]} 19. bxc3 {[%clk 0:02:32]}  Rb8 {[%clk 0:02:48]} 20. Qe3 {[%clk 0:02:27]}  Qa5 {[%clk 0:02:38]} 21. h4 {[%clk 0:02:22]}  Bd3 {[%clk 0:02:38]} 22. Ne2 {[%clk 0:02:18]}  Rb2 {[%clk 0:02:36]} 23. Nd2 {[%clk 0:01:59]}  Rfb8 {[%clk 0:02:26]} 24. h5 {[%clk 0:01:53]}  Rc2 {[%clk 0:02:18]} 25. Rac1 {[%clk 0:01:49]}  Rbb2 {[%clk 0:02:11]} 26. Rxc2 {[%clk 0:01:44]}  Rxc2 {[%clk 0:02:12]} 27. h6 {[%clk 0:01:38]}  Bxe2 {[%clk 0:02:11]} 28. Qxe2 {[%clk 0:01:32]}  Qxc3 {[%clk 0:02:11]} 29. hxg7 {[%clk 0:01:32]}  Nxd4 {[%clk 0:02:11]} 0-1


[Site "https://www.chess.com"]

[Event "Titled Tuesday Blitz August 23 Late 2022"]
[White "Suder, Jakub"]
[Black "Nakamura, Hikaru"]
[WhiteFideId "1195310"]
[BlackFideId "2016192"]
[WhiteElo "2095"]
[BlackElo "2850"]
[Result "0-1"]
[Round "03"]
[TimeControl "180+1"]
[Date "2022.08.23"]
[WhiteClock "0:00:46"]
[BlackClock "0:01:20"]

1. d4 {[%clk 0:03:00]}  g6 {[%clk 0:02:58]} 2. c4 {[%clk 0:03:01]}  Bg7 {[%clk 0:02:59]} 3. Nc3 {[%clk 0:03:02]}  c5 {[%clk 0:02:59]} 4. d5 {[%clk 0:03:02]}  Bxc3+ {[%clk 0:02:59]} 5. bxc3 {[%clk 0:03:03]}  f5 {[%clk 0:03:00]} 6. e4 {[%clk 0:03:04]}  fxe4 {[%clk 0:02:59]} 7. f3 {[%clk 0:03:03]}  e5 {[%clk 0:02:59]} 8. fxe4 {[%clk 0:03:00]}  Qh4+ {[%clk 0:02:57]} 9. Kd2 {[%clk 0:02:59]}  d6 {[%clk 0:02:46]} 10. Qe1 {[%clk 0:02:43]}  Qxe1+ {[%clk 0:02:39]} 11. Kxe1 {[%clk 0:02:44]}  Nf6 {[%clk 0:02:40]} 12. Bd3 {[%clk 0:02:43]}  h6 {[%clk 0:02:40]} 13. a4 {[%clk 0:02:39]}  Kf7 {[%clk 0:02:34]} 14. Nf3 {[%clk 0:02:37]}  Kg7 {[%clk 0:02:34]} 15. a5 {[%clk 0:02:34]}  Nbd7 {[%clk 0:02:31]} 16. Ke2 {[%clk 0:02:24]}  b6 {[%clk 0:02:20]} 17. axb6 {[%clk 0:02:20]}  Nxb6 {[%clk 0:02:21]} 18. Be3 {[%clk 0:02:17]}  a5 {[%clk 0:02:18]} 19. Rhb1 {[%clk 0:02:17]}  Nfd7 {[%clk 0:02:18]} 20. Nd2 {[%clk 0:02:13]}  a4 {[%clk 0:02:18]} 21. Bc2 {[%clk 0:02:09]}  Ra7 {[%clk 0:02:11]} 22. Kd3 {[%clk 0:02:04]}  Bb7 {[%clk 0:02:06]} 23. Bd1 {[%clk 0:02:04]}  Rha8 {[%clk 0:02:02]} 24. Bg4 {[%clk 0:02:03]}  Bc8 {[%clk 0:02:02]} 25. Bxd7 {[%clk 0:02:01]}  Nxd7 {[%clk 0:02:02]} 26. Rf1 {[%clk 0:01:55]}  a3 {[%clk 0:01:58]} 27. Ra2 {[%clk 0:01:50]}  Ra4 {[%clk 0:01:52]} 28. Rfa1 {[%clk 0:01:39]}  Nb6 {[%clk 0:01:49]} 29. Rb1 {[%clk 0:01:37]}  Nxc4 {[%clk 0:01:43]} 30. Nxc4 {[%clk 0:01:33]}  Ba6 {[%clk 0:01:43]} 31. Rf2 {[%clk 0:01:24]}  Bxc4+ {[%clk 0:01:32]} 32. Kc2 {[%clk 0:01:22]}  R4a7 {[%clk 0:01:31]} 33. Bc1 {[%clk 0:01:14]}  a2 {[%clk 0:01:30]} 34. Ra1 {[%clk 0:01:12]}  Rb7 {[%clk 0:01:28]} 35. g4 {[%clk 0:00:56]}  Rb1 {[%clk 0:01:22]} 36. Bb2 {[%clk 0:00:51]}  Rb8 {[%clk 0:01:20]} 37. Rxb1 {[%clk 0:00:46]}  Bd3+ {[%clk 0:01:20]} 0-1


[Site "https://www.chess.com"]

[Event "Titled Tuesday Blitz August 23 Late 2022"]
[White "Taichman, Ori"]
[Black "Bacrot, Etienne"]
[WhiteFideId "2804069"]
[BlackFideId "605506"]
[WhiteElo "2227"]
[BlackElo "2673"]
[Result "0-1"]
[Round "03"]
[TimeControl "180+1"]
[Date "2022.08.23"]
[WhiteClock "0:00:02"]
[BlackClock "0:00:05"]

1. e4 {[%clk 0:02:55]}  c5 {[%clk 0:02:59]} 2. b3 {[%clk 0:02:54]}  Nf6 {[%clk 0:02:56]} 3. e5 {[%clk 0:02:53]}  Nd5 {[%clk 0:02:55]} 4. Bb2 {[%clk 0:02:54]}  Nc6 {[%clk 0:02:55]} 5. g3 {[%clk 0:02:54]}  e6 {[%clk 0:02:54]} 6. Bg2 {[%clk 0:02:54]}  b6 {[%clk 0:02:54]} 7. c4 {[%clk 0:02:46]}  Nde7 {[%clk 0:02:53]} 8. Ne2 {[%clk 0:02:31]}  Bb7 {[%clk 0:02:52]} 9. d4 {[%clk 0:02:29]}  cxd4 {[%clk 0:02:45]} 10. Nxd4 {[%clk 0:02:29]}  Qb8 {[%clk 0:02:33]} 11. Nb5 {[%clk 0:02:01]}  Nf5 {[%clk 0:02:10]} 12. O-O {[%clk 0:01:44]}  a6 {[%clk 0:02:07]} 13. Nd6+ {[%clk 0:01:22]}  Nxd6 {[%clk 0:01:57]} 14. exd6 {[%clk 0:01:23]}  Qxd6 {[%clk 0:01:56]} 15. Qxd6 {[%clk 0:01:21]}  Bxd6 {[%clk 0:01:57]} 16. Bxg7 {[%clk 0:01:22]}  Rg8 {[%clk 0:01:56]} 17. Bb2 {[%clk 0:01:17]}  b5 {[%clk 0:01:48]} 18. Nd2 {[%clk 0:01:15]}  f5 {[%clk 0:01:43]} 19. Rac1 {[%clk 0:00:46]}  O-O-O {[%clk 0:01:24]} 20. Rfd1 {[%clk 0:00:29]}  Bc7 {[%clk 0:01:07]} 21. cxb5 {[%clk 0:00:22]}  axb5 {[%clk 0:01:06]} 22. a4 {[%clk 0:00:22]}  bxa4 {[%clk 0:00:51]} 23. bxa4 {[%clk 0:00:22]}  d5 {[%clk 0:00:48]} 24. Nb3 {[%clk 0:00:22]}  Ba8 {[%clk 0:00:37]} 25. Nd4 {[%clk 0:00:12]}  Nxd4 {[%clk 0:00:30]} 26. Rxd4 {[%clk 0:00:12]}  f4 {[%clk 0:00:13]} 27. Rxf4 {[%clk 0:00:12]}  Rd7 {[%clk 0:00:11]} 28. Be5 {[%clk 0:00:11]}  Kd8 {[%clk 0:00:09]} 29. Bxc7+ {[%clk 0:00:10]}  Rxc7 {[%clk 0:00:09]} 30. Rxc7 {[%clk 0:00:10]}  Kxc7 {[%clk 0:00:10]} 31. Rf7+ {[%clk 0:00:11]}  Kd6 {[%clk 0:00:10]} 32. Rxh7 {[%clk 0:00:11]}  d4 {[%clk 0:00:10]} 33. Bxa8 {[%clk 0:00:10]}  Rxa8 {[%clk 0:00:11]} 34. Rb7 {[%clk 0:00:09]}  Rxa4 {[%clk 0:00:10]} 35. Rb1 {[%clk 0:00:09]}  Kd5 {[%clk 0:00:10]} 36. Kf1 {[%clk 0:00:09]}  e5 {[%clk 0:00:10]} 37. Ke2 {[%clk 0:00:09]}  Ra2+ {[%clk 0:00:09]} 38. Ke1 {[%clk 0:00:08]}  Ke4 {[%clk 0:00:09]} 39. Rd1 {[%clk 0:00:07]}  Kf3 {[%clk 0:00:08]} 40. Rd3+ {[%clk 0:00:07]}  Kg2 {[%clk 0:00:09]} 41. h4 {[%clk 0:00:06]}  Rxf2 {[%clk 0:00:09]} 42. h5 {[%clk 0:00:05]}  Rf1+ {[%clk 0:00:06]} 43. Ke2 {[%clk 0:00:06]}  Rh1 {[%clk 0:00:06]} 44. g4 {[%clk 0:00:06]}  Rh4 {[%clk 0:00:06]} 45. Rd2 {[%clk 0:00:02]}  Kg3 {[%clk 0:00:05]} 46. Kd3 {[%clk 0:00:02]}  Rxg4 {[%clk 0:00:05]} 47. Rh2 {[%clk 0:00:02]}  Kxh2 {[%clk 0:00:05]} 0-1


[Site "https://www.chess.com"]

[Event "Titled Tuesday Blitz August 23 Late 2022"]
[White "Tari, Aryan"]
[Black "Ostrovskiy, Aleksandr"]
[WhiteFideId "1510045"]
[BlackFideId "2034239"]
[WhiteElo "2612"]
[BlackElo "2340"]
[Result "1-0"]
[Round "03"]
[TimeControl "180+1"]
[Date "2022.08.23"]
[WhiteClock "0:01:06"]
[BlackClock "0:00:41"]

1. e4 {[%clk 0:03:00]}  d5 {[%clk 0:02:59]} 2. exd5 {[%clk 0:03:00]}  Nf6 {[%clk 0:03:00]} 3. d4 {[%clk 0:03:00]}  Bg4 {[%clk 0:03:00]} 4. Be2 {[%clk 0:02:57]}  Bxe2 {[%clk 0:03:00]} 5. Nxe2 {[%clk 0:02:58]}  Qxd5 {[%clk 0:03:00]} 6. O-O {[%clk 0:02:56]}  Nc6 {[%clk 0:03:00]} 7. Nbc3 {[%clk 0:02:53]}  Qh5 {[%clk 0:03:00]} 8. Nf4 {[%clk 0:01:56]}  Qxd1 {[%clk 0:02:59]} 9. Rxd1 {[%clk 0:01:57]}  O-O-O {[%clk 0:02:59]} 10. Be3 {[%clk 0:01:52]}  e6 {[%clk 0:02:58]} 11. a3 {[%clk 0:01:52]}  Bd6 {[%clk 0:02:52]} 12. Nfe2 {[%clk 0:01:50]}  Nd5 {[%clk 0:02:51]} 13. Ne4 {[%clk 0:01:45]}  Be7 {[%clk 0:02:49]} 14. Bd2 {[%clk 0:01:40]}  Nf6 {[%clk 0:02:42]} 15. Ng5 {[%clk 0:01:40]}  Rhf8 {[%clk 0:02:41]} 16. Nf3 {[%clk 0:01:39]}  h6 {[%clk 0:02:37]} 17. c4 {[%clk 0:01:33]}  Ne4 {[%clk 0:02:33]} 18. Be3 {[%clk 0:01:32]}  g5 {[%clk 0:02:24]} 19. h3 {[%clk 0:01:32]}  f5 {[%clk 0:02:23]} 20. d5 {[%clk 0:01:31]}  f4 {[%clk 0:01:42]} 21. dxc6 {[%clk 0:01:28]}  fxe3 {[%clk 0:01:42]} 22. cxb7+ {[%clk 0:01:27]}  Kxb7 {[%clk 0:01:43]} 23. fxe3 {[%clk 0:01:27]}  Bc5 {[%clk 0:01:43]} 24. Ned4 {[%clk 0:01:26]}  e5 {[%clk 0:01:07]} 25. Nxe5 {[%clk 0:01:20]}  Nf2 {[%clk 0:01:07]} 26. Rf1 {[%clk 0:01:08]}  Rxd4 {[%clk 0:00:55]} 27. exd4 {[%clk 0:01:09]}  Bxd4 {[%clk 0:00:56]} 28. Nf3 {[%clk 0:01:09]}  Nxh3+ {[%clk 0:00:41]} 29. Kh2 {[%clk 0:01:06]} 1-0


[Site "https://www.chess.com"]